Cogmind - Beta 13 X1 @@@ ROGUE MODE // 2023.08.15 @ 13:31:26 Player: f3-rnm Result: Destroyed by as-20919 with Assembled Rifle Performance ------------- Evolutions (0) 0 Regions Visited (4) 800 Robots Destroyed (7) 35 Value Destroyed (161) 161 Prototype IDs (23) 460 Alien Tech Used (0) 0 Bonus (350) 350 TOTAL SCORE: 1806 Bonus ------- Follower Combat Kills 50 Aligned with FarCom 300 Cogmind --------- Core Integrity 0/250 Matter 290/300 Energy 98/100 System Corruption 4% Temperature Cool (20) Movement Core (50) Location -9/Mines Parts ------- > --- POWER (1) -------- (None) > --- PROPULSION (2) --- (None) > --- UTILITY (2) ------ (None) > --- WEAPON (2) ------- (None) > --- INVENTORY (5) ---- Wheel Signal Interpreter Signal Interpreter 0b10 Alert Chip Peak State ------------ > --- POWER ------------ Light Ion Engine > --- PROPULSION ------- Aluminum Leg Aluminum Leg > --- UTILITY ---------- Small Storage Unit > --- WEAPON ----------- EM Pulse Gun EM Pulse Gun > --- INVENTORY -------- Light Ion Engine Light Ion Engine Wheel Flight Unit Flight Unit Signal Interpreter Chronowheel [Rating: 7] Favorites ----------- Power Light Ion Engine Engine Light Ion Engine Propulsion Aluminum Leg Leg Aluminum Leg Flight Unit Flight Unit Utility Small Storage Unit Storage Small Storage Unit Weapon EM Pulse Gun Energy Gun EM Pulse Gun Ballistic Gun Light Assault Rifle Build | -11 -10 -10 -10 -9 ------- Run | Jun Mat Min Exi Min Slots Evolved . | . . . . . Power . | . . . . . Propulsion . | . . . . . Utility . | . . . . . Weapon . | . . . . . Parts Attached 14 | 6 . . . 8 Power 3 | 1 . . . 2 Engine 3 | 1 . . . 2 Core . | . . . . . Reactor . | . . . . . Propulsion 7 | 2 . . . 5 Treads . | . . . . . Leg 3 | 2 . . . 1 Wheel . | . . . . . Hover . | . . . . . Flight 4 | . . . . 4 Utility 1 | 1 . . . . Device . | . . . . . Storage 1 | 1 . . . . Processor . | . . . . . Hackware . | . . . . . Protection . | . . . . . Artifact . | . . . . . Weapon 3 | 2 . . . 1 Energy Gun 2 | 2 . . . . Energy Cannon . | . . . . . Ballistic Gun 1 | . . . . 1 Ballistic Cannon . | . . . . . Launcher . | . . . . . Special Weapon . | . . . . . Impact Weapon . | . . . . . Slashing Weapon . | . . . . . Piercing Weapon . | . . . . . Special Melee Weapon . | . . . . . Unidentified Prototypes 1 | . . . 1 . Parts Lost 11 | . . . . 11 Power 2 | . . . . 2 Propulsion 6 | . . . . 6 Utility . | . . . . . Weapon 3 | . . . . 3 Highest Loss Streak 4 | . . . . 4 To Critical Strikes . | . . . . . Average Slot Usage (%) 75 | . 85 85 85 66 Engine 13 | . 14 14 14 13 Leg 24 | . 28 28 28 20 Flight 1 | . . . . 3 Storage 14 | . 14 14 14 14 Energy Gun 15 | . 28 28 28 3 Ballistic Gun 5 | . . . . 11 Naked Turns 4 | . . . . 4 Heaviest Build 12 | 12 12 12 12 12 Greatest Support 20 | 20 20 20 20 20 Greatest Overweight (x) 1 | . . . . 1 Average Overweight (x) . | . . . . . Largest Inventory Capacity 8 | 8 8 8 8 8 Average Capacity 7 | 6 8 8 8 7 Most Carried 8 | 4 7 7 7 8 Average Carried 6 | 1 4 7 6 7 Final Capacity 8 | 8 8 8 8 5 Final Carried 7 | 2 7 7 7 4 Class Distribution -------------------- 100% | Mutant Dominant Class ---------------- Mutant | -10/Materials Mutant | -10/Mines Mutant | -10/Exiles Mutant | -9/Mines Resources | -11 -10 -10 -10 -9 ----------- Run | Jun Mat Min Exi Min Matter Collected 331 | 88 72 60 . 111 Remotely . | . . . . . Salvage Created 207 | . 19 . . 188 Parts 15 | . 2 . . 13 Haulers Intercepted . | . . . . . Recyclers Shooed . | . . . . . Parts Field Recycled . | . . . . . Retrieved Matter . | . . . . . Parts Self-Destructed . | . . . . . Prevented . | . . . . . Kills | -11 -10 -10 -10 -9 ------- Run | Jun Mat Min Exi Min Combat Hostiles Destroyed 7 | . . . . 7 Guns 7 | . . . . 7 Classes Destroyed 4 | . 1 . . 3 Watcher 1 | . 1 . . . Swarmer 3 | . . . . 3 Grunt 3 | . . . . 3 Assembled 1 | . . . . 1 Best Kill Streak 3 | . 1 . . 3 Combat Bots Only 3 | . . . . 3 Max Kills in Single Turn 1 | . 1 . . 1 Gunslinging . | . . . . . Exploded . | . . . . . Melee . | . . . . . Uniques/NPCs Destroyed . | . . . . . Combat | -11 -10 -10 -10 -9 -------- Run | Jun Mat Min Exi Min Damage Taken 922 | . 54 19 . 849 Core 257 | . . . . 257 Absorbed by Shields . | . . . . . Core Remaining (%) 100 | 100 . . . . Volleys Fired 37 | . 4 1 . 32 Largest 2 | . 2 2 . 2 Hottest 80 | . 80 80 . 80 Shots Fired 49 | . 8 2 . 39 Gun 49 | . 8 2 . 39 Cannon . | . . . . . Launcher . | . . . . . Special . | . . . . . Kinetic 29 | . . . . 29 Thermal . | . . . . . Explosive . | . . . . . Electromagnetic 20 | . 8 2 . 10 Robot Hit Streak 23 | . 1 1 . 23 Robot Miss Streak 6 | . 6 1 . 1 Penetration Max . | . . . . . Secondary Targets . | . . . . . Shots Hit Robots 33 | . 1 1 . 31 Core Hits 13 | . 1 . . 12 Critical Kills 1 | . . . . 1 Critical Parts Destroyed . | . . . . . Critical Strikes 1 | . . . . 1 Destroy 1 | . . . . 1 Melee Attacks . | . . . . . Impact . | . . . . . Slashing . | . . . . . Piercing . | . . . . . Sneak Attacks . | . . . . . Combat Hostiles . | . . . . . Follow-up Attacks . | . . . . . Damage Inflicted 382 | . 20 12 . 350 Guns 319 | . 20 12 . 287 Cannons . | . . . . . Explosions 52 | . . . . 52 Melee . | . . . . . Ramming 11 | . . . . 11 Kinetic 195 | . . . . 195 Thermal 52 | . . . . 52 Explosive . | . . . . . Electromagnetic 124 | . 20 12 . 92 Impact . | . . . . . Slashing . | . . . . . Piercing . | . . . . . Highest Corruption 4 | . . . . 4 Average Corruption 4 | . . . . 4 Corruption Purged . | . . . . . Corruption Blocked . | . . . . . Effects 1 | . . . . 1 Message Errors 1 | . . . . 1 Overload Shots . | . . . . . Overflow Damage . | . . . . . Projectiles . | . . . . . Explosions . | . . . . . Melee . | . . . . . Knockbacks . | . . . . . Impact . | . . . . . Kinetic . | . . . . . Secondary . | . . . . . Self-Inflicted Damage 36 | . . . . 36 Shots 1 | . . . . 1 Rammed . | . . . . . Targets Rammed 4 | . . . . 4 Kicked 4 | . . . . 4 Crushed . | . . . . . Highest Temperature 60 | . 36 18 . 60 Average Temperature 19 | . 16 12 . 21 Received Heat Transfer 340 | . 30 . . 310 Siege Activations . | . . . . . Robots Corrupted . | . . . . . Combat Hostiles . | . . . . . Parts Fried . | . . . . . Impact Corruptions . | . . . . . Robots Melted . | . . . . . Combat Hostiles . | . . . . . Parts Melted . | . . . . . Heat Transferred 100 | . . . . 100 Parts Sabotaged . | . . . . . Parts Stolen . | . . . . . Parts Stripped . | . . . . . Power Chain Reactions 1 | . . . . 1 Missiles Intercepted . | . . . . . Alert | -11 -10 -10 -10 -9 ------- Run | Jun Mat Min Exi Min Peak Influence 144 | . 37 29 . 144 Initial 14 | . . 14 . . Average 46 | . 30 24 . 62 Maximum Alert Level . | . . . . . Low Security (%) 100 | 100 100 100 . 100 Level 1 . | . . . . . Level 2 . | . . . . . Level 3 . | . . . . . Level 4 . | . . . . . Level 5 . | . . . . . High Security . | . . . . . Max Security . | . . . . . Squads Dispatched 1 | . 1 . . . Investigation . | . . . . . Extermination . | . . . . . Reinforcement 1 | . 1 . . . Assault . | . . . . . Garrison . | . . . . . Intercept . | . . . . . Searches Triggered . | . . . . . Construction Impeded . | . . . . . Haulers Reinforced . | . . . . . Active Scanning Responses . | . . . . . Cargo Convoy Interrupts . | . . . . . Stealth | -11 -10 -10 -10 -9 --------- Run | Jun Mat Min Exi Min Distress Signals . | . . . . . Communications Jammed . | . . . . . Distress Signals . | . . . . . Times Spotted 34 | . 4 2 . 28 Peak Tracking Total 10 | . 2 2 . 10 Tactical Retreats 4 | . . 1 . 3 Traps | -11 -10 -10 -10 -9 ------- Run | Jun Mat Min Exi Min Traps Triggered . | . . . . . Indirectly . | . . . . . Trap Hack Attempts . | . . . . . Triggered . | . . . . . Disarmed . | . . . . . Reprogrammed . | . . . . . Reused . | . . . . . Traps Extracted . | . . . . . Installed . | . . . . . Triggered . | . . . . . Machines | -11 -10 -10 -10 -9 ---------- Run | Jun Mat Min Exi Min Machines Disabled . | . . . . . Max in Single Turn . | . . . . . Machines Repaired . | . . . . . Machines Sabotaged . | . . . . . Overloaded Fab Kills . | . . . . . Hacking | -11 -10 -10 -10 -9 --------- Run | Jun Mat Min Exi Min Machines Accessed 1 | . . . 1 . Terminals . | . . . . . Fabricators . | . . . . . Repair Stations . | . . . . . Recycling Units . | . . . . . Scanalyzers . | . . . . . Garrison Access . | . . . . . Total Hacks 1 | . . . 1 . Successful 1 | . . . 1 . Failed . | . . . . . Catastrophic . | . . . . . Database Lockouts . | . . . . . Manual 1 | . . . 1 . Terminals . | . . . . . Fabricators . | . . . . . Repair Stations . | . . . . . Recycling Units . | . . . . . Scanalyzers . | . . . . . Garrison Access . | . . . . . Terminal Hacks 1 | . . . 1 . Derelict Proto ID Bank 1 | . . . 1 . Fabricator Hacks . | . . . . . Repair Station Hacks . | . . . . . Recycling Unit Hacks . | . . . . . Scanalyzer . | . . . . . Garrison Access Hacks . | . . . . . Unauthorized Hacks . | . . . . . Terminals . | . . . . . Fabricators . | . . . . . Repair Stations . | . . . . . Recycling Units . | . . . . . Scanalyzers . | . . . . . Garrison Access . | . . . . . Data Cores Recovered . | . . . . . Used . | . . . . . Hacking Detections . | . . . . . Full Trace Events . | . . . . . Feedback Events . | . . . . . Feedback Blocked . | . . . . . Robot Schematics Acquired . | . . . . . Robots Built . | . . . . . Authchips . | . . . . . Time . | . . . . . Total Robot Build Rating . | . . . . . Part Schematics Acquired . | . . . . . Parts Built . | . . . . . Authchips . | . . . . . Time . | . . . . . Total Part Build Rating . | . . . . . Parts Repaired . | . . . . . Time . | . . . . . Parts Recycled . | . . . . . Recycled Matter . | . . . . . Retrieved Matter . | . . . . . Retrieved Components . | . . . . . Parts Scanalyzed . | . . . . . Part Schematics Acquired . | . . . . . Parts Damaged . | . . . . . Bothacking | -11 -10 -10 -10 -9 ------------ Run | Jun Mat Min Exi Min Used RIF Installer . | . . . . . Robots Hacked . | . . . . . Non-combat . | . . . . . Combat . | . . . . . Robot Hacks Applied . | . . . . . Relay Couplers Released . | . . . . . Fabnet Peak Effective % . | . . . . . Robots Rewired . | . . . . . Allies Hacked . | . . . . . Hacks Repelled . | . . . . . Allies | -11 -10 -10 -10 -9 -------- Run | Jun Mat Min Exi Min Total Allies 3 | . . . . 3 Largest Group 3 | . . . . 3 Highest-Rated Group 40 | . . . . 40 Highest-Rated Ally 16 | . . . . 16 Total Orders . | . . . . . Ally Attacks 17 | . . . . 17 Total Damage 176 | . . . . 176 Kills 2 | . . . . 2 Allies Corrupted . | . . . . . Allies Melted . | . . . . . Intel | -11 -10 -10 -10 -9 ------- Run | Jun Mat Min Exi Min Robot Analysis Total . | . . . . . Derelict Logs Recovered 2 | . . 1 . 1 Drone Launches . | . . . . . Drone Recoveries . | . . . . . Exploration | -11 -10 -10 -10 -9 ------------- Run | Jun Mat Min Exi Min Turns Passed 1287 | 75 119 198 269 626 Spaces Moved 924 | 56 86 146 223 413 Core 17 | 8 . . . 9 Treads . | . . . . . Legs 809 | 48 86 146 223 306 Wheels . | . . . . . Hover . | . . . . . Flight 98 | . . . . 98 Fastest Speed 37 | 50 120 120 120 37 Average Speed 110 | 110 120 120 120 99 Slowest Speed 120 | 120 120 120 120 120 Overloaded Moves . | . . . . . Propulsion Burnouts . | . . . . . Robots Hopped 4 | . . . . 4 Cave-ins Triggered . | . . . . . Time Travels 1 | . . . 1 . Exploration Rate (%) 36 | 3 22 32 61 62 Regions Visited 4 Branch Regions 3 Pre-discovered Areas 1 | . . 1 . . Known Exits Taken . | . . . . . Unknown Exits Taken 4 | 1 1 1 1 . Scrap Searched 1 | . . . . 1 Spaces Dug . | . . . . . Terrain Destroyed 11 | . . . . 11 Melee . | . . . . . Projectile . | . . . . . AOE 11 | . . . . 11 Terrain Rammed . | . . . . . Walls Destroyed . | . . . . . Machines Disabled . | . . . . . Actions | -11 -10 -10 -10 -9 --------- Run | Jun Mat Min Exi Min Total 1146 | 69 94 167 225 591 Wait 154 | . . 21 . 133 Move 912 | 55 85 145 222 405 Hop 4 | . . . . 4 Pick Up 18 | 8 5 . 2 3 Fast Attach 2 | . . . . 2 Attach 11 | 6 . . . 5 Detach . | . . . . . Swap 1 | . . . . 1 Drop 3 | . . . 1 2 Fire 37 | . 4 1 . 32 Melee . | . . . . . Ram . | . . . . . Kick 4 | . . . . 4 Crush . | . . . . . Escape Stasis . | . . . . . Rewire . | . . . . . Trap . | . . . . . Miscellaneous . | . . . . . Route ------- -11/Junkyard -10/Materials -10/Mines (discovered 2 exits: [*Mat] / *Exi) -10/Exiles -9/Mines History --------- Turn | Location | Event 4 | -11/Junkyard | Discovered new exit (range 14) 76 | -11/Junkyard | Entered Materials 146 | -10/Materials | Met 8R-AWN 186 | -10/Materials | Discovered new exit (range 9) 195 | -10/Materials | Entered Mines 197 | -10/Mines | Followed 8R-AWN into the Mines 213 | -10/Mines | Learned location of Zion (-6) 282 | -10/Mines | Discovered new exit (range 5) 305 | -10/Mines | Build established: Mutant 329 | -10/Mines | Discovered new exit (range 5) 393 | -10/Mines | Entered Exiles 423 | -10/Exiles | Welcomed by 8R-AWN 443 | -10/Exiles | Met EX-HEX 481 | -10/Exiles | Met EX-BIN 494 | -10/Exiles | Aligned with FarCom system 495 | -10/Exiles | Given EX-Vault access code 524 | -10/Exiles | Opened EX-Vault 532 | -10/Exiles | Found Prototype Device 533 | -10/Exiles | Identified Chronowheel 533 | -10/Exiles | Activated Chronowheel 533 | -10/Exiles | Spacetime reconverged on an earlier point 543 | -10/Exiles | Found 0b10 Alert Chip 571 | -10/Exiles | Warned to stay clear of 0b10 Research branches 602 | -10/Exiles | Met EX-DEC 643 | -10/Exiles | Discovered new exit (range 14) 662 | -10/Exiles | Left Exiles lab with 0b10 Alert Chip 662 | -10/Exiles | Entered Mines 689 | -9/Mines | Learned location of 1 exit from Materials 915 | -9/Mines | Assisted by bots powering up and referring to "LRC-V3" 1181 | -9/Mines | Assembled infested the area 1186 | -9/Mines | Assisted by a Guerilla fighting off Assembled 1282 | -9/Mines | Core integrity fell below 50% 1284 | -9/Mines | Released all parts (1) 1287 | -9/Mines | Core integrity fell below 20% 1288 | -9/Mines | Destroyed by as-20919 with Assembled Rifle Last Messages --------------- 01195_ Found 13 Matter. 01197_ Acquired Signal Interpreter. 01198_ T-07 Excavator is excavating. 01204_ T-07 Excavator destroyed. 01210_ as-26195 suffers critical hit (Destroy). 01210_ as-26195 destroyed. 01212_ Lgt. Assault Rifle destroyed. 01214_ Aluminum Leg destroyed. 01217_ Acquired 20 matter. 01227_ as-17196 sneak attacks. 01231_ T-07 Excavator destroyed. 01234_ K-01 Serf destroyed. 01277_ Flight Unit destroyed. 01277_ System corrupted by crushing effect (+4). 01278_ Flight Unit destroyed. 01280_ Lgt. Ion Engine destroyed. 01281_ Flight Unit destroyed. 01283_ YJR47HC:XOYIH =